Cogmind - Beta 13 @@@ ROGUE MODE // 2024.04.29 @ 19:32:25 Player: A Foxgirl OWO Result: Destroyed by as-50799 with Assembled F-torch Performance ------------- Evolutions (0) 0 Regions Visited (4) 800 Robots Destroyed (24) 120 Value Destroyed (442) 442 Prototype IDs (25) 500 Alien Tech Used (0) 0 Bonus (300) 300 TOTAL SCORE: 2162 Bonus ------- Aligned with FarCom 300 Cogmind --------- Core Integrity 0/250 Matter 251/300 Energy 78/100 System Corruption 3% Temperature Cool (20) Movement Walking (120) Location -9/Mines Parts ------- > --- POWER (1) -------- (None) > --- PROPULSION (2) --- Aluminum Leg Aluminum Leg > --- UTILITY (2) ------ Large Storage Unit > --- WEAPON (2) ------- (None) > --- INVENTORY (15) --- Ion Engine Light Treads Wheel Flying Fortress v7 Medium Storage Unit Medium Storage Unit Large Storage Unit Light Assault Rifle Light Assault Rifle Peak State ------------ > --- POWER ------------ Ion Engine > --- PROPULSION ------- Light Treads Light Treads > --- UTILITY ---------- Large Storage Unit Seismic Detector > --- WEAPON ----------- Assault Rifle Light Assault Rifle > --- INVENTORY -------- Ion Engine Aluminum Leg Aluminum Leg Wheel Flying Fortress v7 Medium Storage Unit Medium Storage Unit Large Storage Unit Light Assault Rifle Light Assault Rifle Light Assault Rifle Grenade Launcher [Rating: 11] Favorites ----------- Power Ion Engine Engine Ion Engine Propulsion Light Treads Treads Light Treads Leg Aluminum Leg Utility Seismic Detector Device Seismic Detector Storage Small Storage Unit Weapon Assault Rifle Ballistic Gun Assault Rifle Launcher Grenade Launcher Build | -11 -10 -10 -10 -9 ------- Run | Yrd Mat Min Exi Min Slots Evolved . | . . . . . Power . | . . . . . Propulsion . | . . . . . Utility . | . . . . . Weapon . | . . . . . Parts Attached 18 | 7 7 . . 4 Power 2 | 1 1 . . . Engine 2 | 1 1 . . . Core . | . . . . . Reactor . | . . . . . Propulsion 6 | 2 2 . . 2 Treads 4 | 2 2 . . . Leg 2 | . . . . 2 Wheel . | . . . . . Hover . | . . . . . Flight . | . . . . . Utility 3 | 2 1 . . . Device 1 | 1 . . . . Storage 2 | 1 1 . . . Processor . | . . . . . Hackware . | . . . . . Protection . | . . . . . Artifact . | . . . . . Weapon 7 | 2 3 . . 2 Energy Gun . | . . . . . Energy Cannon . | . . . . . Ballistic Gun 6 | 2 3 . . 1 Ballistic Cannon . | . . . . . Launcher 1 | . . . . 1 Special Weapon . | . . . . . Impact Weapon . | . . . . . Slashing Weapon . | . . . . . Piercing Weapon . | . . . . . Special Melee Weapon . | . . . . . Unidentified Prototypes . | . . . . . Parts Lost 7 | . . . . 7 Power 1 | . . . . 1 Propulsion 1 | . . . . 1 Utility 1 | . . . . 1 Weapon 4 | . . . . 4 Highest Loss Streak 7 | . . . . 7 To Critical Strikes . | . . . . . Average Slot Usage (%) 99 | . 99 100 100 74 Engine 13 | . 14 14 14 7 Treads 27 | . 27 28 28 21 Device 13 | . 14 14 14 7 Storage 14 | . 14 14 14 14 Ballistic Gun 27 | . 28 28 28 17 Naked Turns . | . . . . . Heaviest Build 29 | 15 29 29 29 29 Greatest Support 40 | 40 40 40 40 40 Greatest Overweight (x) . | . . . . . Average Overweight (x) . | . . . . . Largest Inventory Capacity 15 | 8 15 15 15 15 Average Capacity 10 | 7 9 15 15 15 Most Carried 15 | 5 15 15 15 15 Average Carried 9 | 4 8 15 14 13 Final Capacity 15 | 8 15 15 15 15 Final Carried 15 | 5 15 15 15 12 Class Distribution -------------------- 100% | Mutant Dominant Class ---------------- Mutant | -10/Materials Mutant | -10/Mines Mutant | -10/Exiles Mutant | -9/Mines Resources | -11 -10 -10 -10 -9 ----------- Run | Yrd Mat Min Exi Min Matter Collected 580 | 290 228 62 . . Remotely . | . . . . . Salvage Created 629 | 55 389 144 . 41 Parts 54 | 4 35 12 . 3 Haulers Intercepted . | . . . . . Recyclers Shooed . | . . . . . Parts Field Recycled . | . . . . . Retrieved Matter . | . . . . . Parts Self-Destructed . | . . . . . Prevented . | . . . . . Kills | -11 -10 -10 -10 -9 ------- Run | Yrd Mat Min Exi Min Combat Hostiles Destroyed 20 | . 14 5 . 1 Guns 20 | . 14 5 . 1 Classes Destroyed 4 | 1 3 . . . Tunneler 3 | 3 . . . . Watcher 1 | . 1 . . . Swarmer 12 | . 9 3 . . Grunt 8 | . 5 2 . 1 Best Kill Streak 3 | 2 3 3 . 1 Combat Bots Only 3 | . 3 3 . 1 Max Kills in Single Turn 2 | 1 2 1 . 1 Gunslinging . | . . . . . Exploded . | . . . . . Melee . | . . . . . Uniques/NPCs Destroyed . | . . . . . Combat | -11 -10 -10 -10 -9 -------- Run | Yrd Mat Min Exi Min Hostile Shots Fired 142 | . 41 16 3 82 Missed 40 | . 14 2 1 23 Damage Taken 1401 | . 265 159 17 960 Core 256 | . 29 27 . 200 Absorbed by Shields . | . . . . . Regen/Repaired (Parts) 135 | . 135 . . . Core Remaining (%) 100 | 100 . . . . Volleys Fired 57 | 8 30 10 . 9 Largest 2 | 2 2 2 . 2 Hottest 50 | 40 40 40 . 50 Shots Fired 113 | 16 60 20 . 17 Gun 112 | 16 60 20 . 16 Cannon . | . . . . . Launcher 1 | . . . . 1 Special . | . . . . . Kinetic 112 | 16 60 20 . 16 Thermal . | . . . . . Explosive 1 | . . . . 1 Electromagnetic . | . . . . . Robot Hit Streak 14 | 4 14 7 . 9 Robot Miss Streak 6 | 6 3 5 . 1 Penetration Max . | . . . . . Secondary Targets . | . . . . . Shots Hit Robots 67 | 7 37 13 . 10 Core Hits 38 | 3 21 9 . 5 Critical Kills . | . . . . . Critical Parts Destroyed . | . . . . . Critical Strikes . | . . . . . Melee Attacks . | . . . . . Impact . | . . . . . Slashing . | . . . . . Piercing . | . . . . . Sneak Attacks . | . . . . . Combat Hostiles . | . . . . . Follow-up Attacks . | . . . . . Damage Inflicted 800 | 94 441 147 . 118 Guns 800 | 94 441 147 . 118 Cannons . | . . . . . Explosions . | . . . . . Melee . | . . . . . Ramming . | . . . . . Kinetic 800 | 94 441 147 . 118 Thermal . | . . . . . Explosive . | . . . . . Electromagnetic . | . . . . . Impact . | . . . . . Slashing . | . . . . . Piercing . | . . . . . Highest Corruption 3 | . . . . 3 Average Corruption 3 | . . . . 3 Corruption Purged . | . . . . . Corruption Blocked . | . . . . . Overload Shots . | . . . . . Overflow Damage . | . . . . . Projectiles . | . . . . . Explosions . | . . . . . Melee . | . . . . . Knockbacks . | . . . . . Impact . | . . . . . Kinetic . | . . . . . Secondary . | . . . . . Self-Inflicted Damage . | . . . . . Shots . | . . . . . Rammed . | . . . . . Targets Rammed . | . . . . . Kicked . | . . . . . Crushed . | . . . . . Highest Temperature 19 | . 12 9 . 19 Average Temperature 7 | . 6 8 . 8 Received Heat Transfer 432 | . 78 51 . 303 Siege Activations . | . . . . . Robots Corrupted . | . . . . . Combat Hostiles . | . . . . . Parts Fried . | . . . . . Impact Corruptions . | . . . . . Robots Melted . | . . . . . Combat Hostiles . | . . . . . Parts Melted . | . . . . . Heat Transferred . | . . . . . Parts Sabotaged . | . . . . . Parts Stolen . | . . . . . Parts Stripped . | . . . . . Power Chain Reactions . | . . . . . Alert | -11 -10 -10 -10 -9 ------- Run | Yrd Mat Min Exi Min Peak Influence 236 | 15 236 150 . 20 Initial 9 | . 9 . . . Average 73 | 3 81 121 . 3 Maximum Alert Level 1 | . 1 . . . Low Security (%) 93 | 100 91 100 . 100 Level 1 6 | . 8 . . . Level 2 . | . . . . . Level 3 . | . . . . . Level 4 . | . . . . . Level 5 . | . . . . . High Security . | . . . . . Max Security . | . . . . . Squads Dispatched 2 | . 2 . . . Investigation 1 | . 1 . . . Extermination . | . . . . . Reinforcement 1 | . 1 . . . Assault . | . . . . . Garrison . | . . . . . Intercept . | . . . . . Searches Triggered . | . . . . . Construction Impeded . | . . . . . Haulers Reinforced . | . . . . . Active Scanning Responses . | . . . . . Cargo Convoy Interrupts . | . . . . . Stealth | -11 -10 -10 -10 -9 --------- Run | Yrd Mat Min Exi Min Distress Signals 4 | . 4 . . . Communications Jammed . | . . . . . Distress Signals . | . . . . . Times Spotted 41 | . 22 5 1 13 Peak Tracking Total 7 | . 5 2 1 7 Tactical Retreats 1 | . . 1 . . Traps | -11 -10 -10 -10 -9 ------- Run | Yrd Mat Min Exi Min Traps Triggered . | . . . . . Indirectly . | . . . . . Trap Hack Attempts . | . . . . . Triggered . | . . . . . Disarmed . | . . . . . Reprogrammed . | . . . . . Reused . | . . . . . Traps Extracted . | . . . . . Installed . | . . . . . Triggered . | . . . . . Machines | -11 -10 -10 -10 -9 ---------- Run | Yrd Mat Min Exi Min Machines Disabled . | . . . . . Max in Single Turn . | . . . . . Machines Repaired . | . . . . . Machines Dismantled . | . . . . . Machines Sabotaged . | . . . . . Overloaded Fab Kills . | . . . . . Hacking | -11 -10 -10 -10 -9 --------- Run | Yrd Mat Min Exi Min Machines Accessed 6 | . 5 . 1 . Terminals 4 | . 4 . . . Fabricators . | . . . . . Repair Stations 1 | . 1 . . . Recycling Units . | . . . . . Scanalyzers . | . . . . . Garrison Access . | . . . . . Total Hacks 17 | . 16 . 1 . Successful 10 | . 9 . 1 . Failed 7 | . 7 . . . Catastrophic 2 | . 2 . . . Database Lockouts . | . . . . . Manual 5 | . 4 . 1 . Terminals 10 | . 10 . . . Fabricators . | . . . . . Repair Stations 6 | . 6 . . . Recycling Units . | . . . . . Scanalyzers . | . . . . . Garrison Access . | . . . . . Terminal Hacks 5 | . 4 . 1 . Prototype ID Bank 1 | . 1 . . . Branch Access Points 1 | . 1 . . . Locate Traps 1 | . 1 . . . Registered Components 1 | . 1 . . . Derelict Proto ID Bank 1 | . . . 1 . Fabricator Hacks . | . . . . . Repair Station Hacks 5 | . 5 . . . Scan Component 3 | . 3 . . . Repair 2 | . 2 . . . Recycling Unit Hacks . | . . . . . Scanalyzer . | . . . . . Garrison Access Hacks . | . . . . . Unauthorized Hacks . | . . . . . Terminals . | . . . . . Fabricators . | . . . . . Repair Stations . | . . . . . Recycling Units . | . . . . . Scanalyzers . | . . . . . Garrison Access . | . . . . . Data Cores Recovered . | . . . . . Used . | . . . . . Hacking Detections 5 | . 5 . . . Full Trace Events 1 | . 1 . . . Feedback Events . | . . . . . Feedback Blocked . | . . . . . Robot Schematics Acquired . | . . . . . Robots Built . | . . . . . Authchips . | . . . . . Time . | . . . . . Total Robot Build Rating . | . . . . . Part Schematics Acquired . | . . . . . Parts Built . | . . . . . Authchips . | . . . . . Time . | . . . . . Total Part Build Rating . | . . . . . Parts Repaired 2 | . 2 . . . Time 62 | . 62 . . . Parts Recycled . | . . . . . Recycled Matter . | . . . . . Retrieved Matter . | . . . . . Retrieved Components . | . . . . . Parts Scanalyzed . | . . . . . Part Schematics Acquired . | . . . . . Parts Damaged . | . . . . . Bothacking | -11 -10 -10 -10 -9 ------------ Run | Yrd Mat Min Exi Min Used RIF Installer . | . . . . . Robots Hacked . | . . . . . Non-combat . | . . . . . Combat . | . . . . . Robot Hacks Applied . | . . . . . Relay Couplers Released . | . . . . . Fabnet Peak Effective % . | . . . . . Robots Rewired . | . . . . . Allies Hacked . | . . . . . Hacks Repelled . | . . . . . Allies | -11 -10 -10 -10 -9 -------- Run | Yrd Mat Min Exi Min Total Allies . | . . . . . Largest Group . | . . . . . Highest-Rated Group . | . . . . . Highest-Rated Ally . | . . . . . Total Orders . | . . . . . Ally Attacks . | . . . . . Total Damage . | . . . . . Kills . | . . . . . Allies Corrupted . | . . . . . Allies Melted . | . . . . . Intel | -11 -10 -10 -10 -9 ------- Run | Yrd Mat Min Exi Min Robot Analysis Total . | . . . . . Derelict Logs Recovered . | . . . . . Drone Launches . | . . . . . Drone Recoveries . | . . . . . Exploration | -11 -10 -10 -10 -9 ------------- Run | Yrd Mat Min Exi Min Turns Passed 2298 | 232 1455 160 402 49 Spaces Moved 1224 | 124 773 66 246 15 Core 4 | 4 . . . . Treads 1210 | 120 773 66 246 5 Legs 10 | . . . . 10 Wheels . | . . . . . Hover . | . . . . . Flight . | . . . . . Fastest Speed 50 | 50 160 160 160 120 Average Speed 159 | 156 160 160 160 133 Slowest Speed 160 | 160 160 160 160 160 Overloaded Moves . | . . . . . Propulsion Burnouts . | . . . . . Robots Hopped . | . . . . . Cave-ins Triggered . | . . . . . Exploration Rate (%) 37 | 6 95 14 61 9 Regions Visited 4 Branch Regions 3 Pre-discovered Areas . | . . . . . Known Exits Taken 1 | . 1 . . . Unknown Exits Taken 3 | 1 . 1 1 . Scrap Searched . | . . . . . Spaces Dug . | . . . . . Terrain Destroyed 6 | . . . . 6 Melee . | . . . . . Projectile . | . . . . . AOE 6 | . . . . 6 Terrain Rammed . | . . . . . Walls Destroyed . | . . . . . Machines Disabled . | . . . . . Actions | -11 -10 -10 -10 -9 --------- Run | Yrd Mat Min Exi Min Total 1473 | 143 942 103 257 28 Wait 149 | . 114 28 7 . Move 1220 | 123 772 65 245 15 Hop . | . . . . . Pick Up 18 | 5 12 . 1 . Fast Attach 9 | 7 2 . . . Attach 3 | . . . . 3 Detach . | . . . . . Swap 6 | . 5 . . 1 Drop 11 | . 7 . 4 . Fire 57 | 8 30 10 . 9 Melee . | . . . . . Ram . | . . . . . Kick . | . . . . . Crush . | . . . . . Escape Stasis . | . . . . . Rewire . | . . . . . Trap . | . . . . . Miscellaneous . | . . . . . Route ------- -11/Scrapyard -10/Materials (discovered 4 exits: [*Mat x3] / *Min) -10/Mines (discovered 3 exits: [*Mat x2] / *Exi) -10/Exiles -9/Mines History --------- Turn | Location | Event 7 | -11/Scrapyard | Discovered new exit (range 14) 233 | -11/Scrapyard | Entered Materials 310 | -10/Materials | Build established: Mutant 340 | -10/Materials | Discovered new exit (range 7) 478 | -10/Materials | Discovered new exit (range 10) 1058 | -10/Materials | Repaired Lgt. Treads 1095 | -10/Materials | Repaired Broken Lgt. Treads 1155 | -10/Materials | Discovered new exit (range 13) 1385 | -10/Materials | Identified exit to Mines 1398 | -10/Materials | Discovered new exit (range 11) 1688 | -10/Materials | Entered Mines 1706 | -10/Mines | Discovered new exit (range 10) 1821 | -10/Mines | Discovered new exit (range 7) 1840 | -10/Mines | Deemed a non-threat by the Exiles lab entrance 1842 | -10/Mines | Discovered new exit (range 5) 1848 | -10/Mines | Entered Exiles 1885 | -10/Exiles | Met 8R-AWN 1912 | -10/Exiles | Met EX-HEX 1959 | -10/Exiles | Met EX-BIN 1981 | -10/Exiles | Aligned with FarCom system 1983 | -10/Exiles | Given EX-Vault access code 2023 | -10/Exiles | Opened EX-Vault 2036 | -10/Exiles | Found Flying Fortress v7 2072 | -10/Exiles | Warned to stay clear of 0b10 Research branches 2091 | -10/Exiles | Exiles lab attacked by MAIN.C 2228 | -10/Exiles | Discovered new exit (range 14) 2250 | -10/Exiles | Left Exiles lab with Flying Fortress v7 2250 | -10/Exiles | Entered Mines 2251 | -9/Mines | Assembled infested the area 2288 | -9/Mines | Core integrity fell below 50% 2296 | -9/Mines | Core integrity fell below 20% 2299 | -9/Mines | Destroyed by as-50799 with Assembled F-torch Last Messages --------------- we got split up from the others." G-47 Trooper destroyed. as-08931 destroyed. as-10432 destroyed. as-79810 destroyed. as-54293 destroyed. D-53 Grenadier destroyed. as-51551 destroyed. D-53 Grenadier destroyed. GM-J5T destroyed. G-34 Mercenary destroyed. Seismic Detector destroyed. Lgt. Assault Rifle destroyed. Ion Engine destroyed. Grenade Launcher destroyed. System corrupted by crushing effect (+3). The unstable cave ceiling collapses. Assault Rifle destroyed. Lgt. Treads destroyed. Lgt. Assault Rifle destroyed. Map ----- +----------------------------------------------------+ | ?????????????????????????????????????????????????? | | ?????????????????????????????????????????????????? | | ?????????????????????????????????????????????????? | | ?????????????????????????????????????????????????? | | ?????????????????????????????????????????????????? | | ?????????????????????????????????????????????????? | | ?????????????????????????????????????????????????? | | ?????????????????????????????????????????????????? | | ?????????????????????????????????????????????????? | | ?????????????????????????????????????????????????? | | ?????????????????????????????????????????????????? | | ?????????????????????###?????????????????????????? | | ???????????????????? ?????????????????????????? | | ???????????????????? ?????????????????????????? | | ????????????????????? ##???????????????????????? | | ??????????????????##? #??????????????????????? | | ?????????????????## # %??????????????????????? | | ?????????????????# # %%??????????????????????? | | ?????????????????# %%% * ??????????????????????? | | ?????????????????? # %=??????????????????????? | | ??????????????????? ??????????????????????? | | ????????????????????# ####???????????????????? | | ????????????????????## ##??????????????????? | | ???????????????????## a ##?????????????????? | | ???????????????????? ##????????????????? | | ???????????????????????# @ a #????????????????? | | ???????????????????????# a a #????????????????? | | ???????????????????????# ##???ss??s???????? | | ???????????????????????# a ##??????????????? | | ???????????????????????## =a ####???????????? | | ????????????????????????# %[ ##??????????? | | ????????????????????????### !%= a #??????????? | | ??????????????????????????# = ##??????????? | | ??????????????????????????# #########???????????? | | ??????????????????????????####???????????????????? | | ?????????????????????????????????????????????????? | | ?????????????????????????????????????????????????? | | ?????????????????????????????????????????????????? | | ?????????????????????????????????????????????????? | | ?????????????????????????????????????????????????? | | | | | | | | | | | | | | | | | | | | | +----------------------------------------------------+ Best States ------------- Heat Dissipation 25 Energy Generation 10 Energy Capacity 250 Matter Stores 300 Matter Capacity 300 Sight Range 16 Terrain Scan Density 10 Evasion (%) 45 Recoil Reduction 2 Item Schematics ----------------- None Robot Schematics ------------------ None Fabricated ------------ Nothing Alien Tech Used ----------------- None Achievements -------------- None Challenges ------------ None Game ------ Seed DispersionSlugKatana Manual? 0 Play Time 00:16:00 Cumulative 14.1 hours Start 2024.04.29 @ 19:17:06 End 2024.04.29 @ 19:32:25 Sessions 1 Manual Loads 0 Difficulty Rogue Special Mode None Game No. 33 Rogue 33 Adventurer 0 Explorer 0 Win Type - Total 0 Types 0/0/0/0/0/0/0/0/0 Lore% 15 Gallery% 15 Achievement% 12 Wizard Run 0 Options --------- Layout 1 ASCII 0 Keyboard 0 Movement Mouse Keybinds 0 Fullscreen 0 Font 42/SmallcapsGlow Map View 50x35 Zoom Use 0% Tactical HUD 0 Map Filters NONE Filters NONE Steam 1 RUN: f966dbcc-bdeb-4073-b833-825bf488f190